[Event "*** Titled Tuesday Blitz"]
[Site "Chess.com"]
[Date "2019.02.05"]
[Round "5"]
[White "Astaneh"]
[Black "Ellaijio_B"]
[Result "1/2-1/2"]
[WhiteElo "2571"]
[BlackElo "2644"]
[TimeControl "180+2"]
[EndTime "14:15:07 PST"]
[Termination "Game drawn - insufficient material"]

1. Nf3 {[%clk 0:02:51.2]} 1... c5 {[%clk 0:03:00.6]} 2. e3 {[%clk 0:02:52.2]}
2... Nf6 {[%clk 0:03:00.9]} 3. d4 {[%clk 0:02:54.1]} 3... g6 {[%clk 0:03:02.3]}
4. c3 {[%clk 0:02:53.7]} 4... b6 {[%clk 0:03:01.6]} 5. Bc4 {[%clk 0:02:49.7]}
5... Bg7 {[%clk 0:03:00]} 6. O-O {[%clk 0:02:51]} 6... O-O {[%clk 0:02:59.3]} 7.
Re1 {[%clk 0:02:51.6]} 7... Bb7 {[%clk 0:03:00.8]} 8. Nbd2 {[%clk 0:02:45.9]}
8... d6 {[%clk 0:02:59.6]} 9. e4 {[%clk 0:02:44.8]} 9... cxd4 {[%clk 0:02:56]}
10. cxd4 {[%clk 0:02:45.9]} 10... Nc6 {[%clk 0:02:46]} 11. e5 {[%clk 0:02:46.9]}
11... Ne8 {[%clk 0:02:35]} 12. e6 {[%clk 0:02:46.4]} 12... f5 {[%clk 0:02:28]}
13. d5 {[%clk 0:02:44.2]} 13... Na5 {[%clk 0:02:24.8]} 14. a3 {[%clk 0:02:34.5]}
14... Nxc4 {[%clk 0:02:23.4]} 15. Nxc4 {[%clk 0:02:35.6]} 15... Nf6 {[%clk
0:02:22.3]} 16. Ne3 {[%clk 0:02:13.4]} 16... f4 {[%clk 0:02:23.2]} 17. Nc2
{[%clk 0:02:15]} 17... Nxd5 {[%clk 0:02:18.6]} 18. Ng5 {[%clk 0:02:16.5]} 18...
Rc8 {[%clk 0:02:05.9]} 19. Nf7 {[%clk 0:02:12.8]} 19... Qc7 {[%clk 0:02:07.1]}
20. Nb4 {[%clk 0:02:13.9]} 20... Qc4 {[%clk 0:01:43.7]} 21. Nxd5 {[%clk
0:02:06]} 21... Qxd5 {[%clk 0:01:39.8]} 22. Qxd5 {[%clk 0:02:06.4]} 22... Bxd5
{[%clk 0:01:41]} 23. Bxf4 {[%clk 0:01:56.4]} 23... Bxb2 {[%clk 0:01:12.6]} 24.
Rad1 {[%clk 0:01:38.2]} 24... Bxe6 {[%clk 0:00:50.9]} 25. Nh6+ {[%clk
0:01:37.8]} 25... Kg7 {[%clk 0:00:51.7]} 26. Bg5 {[%clk 0:01:39.5]} 26... Bf6
{[%clk 0:00:40.5]} 27. h4 {[%clk 0:01:39]} 27... Bb3 {[%clk 0:00:31.6]} 28. Rd3
{[%clk 0:01:35.5]} 28... Bc4 {[%clk 0:00:31.1]} 29. Rdd1 {[%clk 0:01:23.7]}
29... Rc7 {[%clk 0:00:25.9]} 30. Ng4 {[%clk 0:01:07.5]} 30... Bxg5 {[%clk
0:00:24.1]} 31. hxg5 {[%clk 0:01:09.4]} 31... Bb3 {[%clk 0:00:20.4]} 32. Rd3
{[%clk 0:01:08.8]} 32... Bg8 {[%clk 0:00:20.4]} 33. Rde3 {[%clk 0:01:02.7]}
33... e5 {[%clk 0:00:16.8]} 34. g3 {[%clk 0:00:56.3]} 34... Bc4 {[%clk
0:00:17.1]} 35. Nf6 {[%clk 0:00:50.7]} 35... h6 {[%clk 0:00:14.9]} 36. f4 {[%clk
0:00:49.2]} 36... hxg5 {[%clk 0:00:15.1]} 37. fxg5 {[%clk 0:00:51.1]} 37... Rh8
{[%clk 0:00:14.5]} 38. Rd1 {[%clk 0:00:47.3]} 38... Rc6 {[%clk 0:00:15.7]} 39.
Ne4 {[%clk 0:00:44.6]} 39... d5 {[%clk 0:00:15.7]} 40. Nf6 {[%clk 0:00:46.3]}
40... e4 {[%clk 0:00:15.9]} 41. Nxd5 {[%clk 0:00:46.6]} 41... Bxd5 {[%clk
0:00:16.9]} 42. Rxd5 {[%clk 0:00:48.5]} 42... Re8 {[%clk 0:00:17.6]} 43. Rd7+
{[%clk 0:00:48.5]} 43... Kg8 {[%clk 0:00:17.7]} 44. Rxa7 {[%clk 0:00:48.7]}
44... Rc5 {[%clk 0:00:18.5]} 45. Rb7 {[%clk 0:00:45.3]} 45... b5 {[%clk
0:00:19]} 46. Kf2 {[%clk 0:00:37.8]} 46... Rxg5 {[%clk 0:00:20.1]} 47. Rb3
{[%clk 0:00:34.8]} 47... Rf5+ {[%clk 0:00:21.3]} 48. Ke2 {[%clk 0:00:35.6]}
48... Ree5 {[%clk 0:00:22.7]} 49. Rc3 {[%clk 0:00:36.3]} 49... Rf7 {[%clk
0:00:22.8]} 50. Rcc7 {[%clk 0:00:32.2]} 50... Rxc7 {[%clk 0:00:19.7]} 51. Rxc7
{[%clk 0:00:34.1]} 51... e3 {[%clk 0:00:21.2]} 52. Rc3 {[%clk 0:00:27.9]} 52...
Kf7 {[%clk 0:00:21.6]} 53. Rxe3 {[%clk 0:00:26.3]} 53... Rd5 {[%clk 0:00:22.5]}
54. Re4 {[%clk 0:00:20.8]} 54... Kf6 {[%clk 0:00:23]} 55. Ke3 {[%clk 0:00:20.9]}
55... Kf5 {[%clk 0:00:21.2]} 56. Rb4 {[%clk 0:00:19.4]} 56... Re5+ {[%clk
0:00:20.6]} 57. Kf3 {[%clk 0:00:20.1]} 57... Rc5 {[%clk 0:00:21.8]} 58. Kg2
{[%clk 0:00:16.3]} 58... g5 {[%clk 0:00:21.3]} 59. a4 {[%clk 0:00:08.1]} 59...
Rc2+ {[%clk 0:00:19.7]} 60. Kf3 {[%clk 0:00:08.2]} 60... Rc3+ {[%clk 0:00:20.7]}
61. Kf2 {[%clk 0:00:09.1]} 61... bxa4 {[%clk 0:00:19.8]} 62. Rxa4 {[%clk
0:00:09.3]} 62... Rc2+ {[%clk 0:00:21.3]} 63. Kf3 {[%clk 0:00:10.7]} 63... g4+
{[%clk 0:00:22.2]} 64. Ke3 {[%clk 0:00:10.9]} 64... Rc3+ {[%clk 0:00:21.6]} 65.
Kf2 {[%clk 0:00:12.2]} 65... Rf3+ {[%clk 0:00:22.4]} 66. Kg2 {[%clk 0:00:13.6]}
66... Rd3 {[%clk 0:00:22.1]} 67. Ra5+ {[%clk 0:00:14.3]} 67... Ke4 {[%clk
0:00:22.7]} 68. Ra4+ {[%clk 0:00:16.2]} 68... Rd4 {[%clk 0:00:24.2]} 69. Ra2
{[%clk 0:00:17.2]} 69... Ke3 {[%clk 0:00:25]} 70. Ra3+ {[%clk 0:00:13.3]} 70...
Rd3 {[%clk 0:00:25.6]} 71. Ra4 {[%clk 0:00:11]} 71... Rd2+ {[%clk 0:00:26.6]}
72. Kf1 {[%clk 0:00:10.8]} 72... Kf3 {[%clk 0:00:20.6]} 73. Ra3+ {[%clk
0:00:12.1]} 73... Ke4 {[%clk 0:00:21.6]} 74. Ra4+ {[%clk 0:00:13.7]} 74... Rd4
{[%clk 0:00:22.9]} 75. Ra8 {[%clk 0:00:14.9]} 75... Kf3 {[%clk 0:00:23.6]} 76.
Ra3+ {[%clk 0:00:15.6]} 76... Ke4 {[%clk 0:00:24.5]} 77. Kf2 {[%clk 0:00:16.4]}
77... Rd2+ {[%clk 0:00:25.3]} 78. Ke1 {[%clk 0:00:17.5]} 78... Rd4 {[%clk
0:00:24.9]} 79. Ke2 {[%clk 0:00:18.1]} 79... Rb4 {[%clk 0:00:26.1]} 80. Ra8
{[%clk 0:00:15.2]} 80... Rb2+ {[%clk 0:00:26.8]} 81. Kf1 {[%clk 0:00:16.8]}
81... Rb3 {[%clk 0:00:28.1]} 82. Kf2 {[%clk 0:00:17]} 82... Rf3+ {[%clk
0:00:27.9]} 83. Kg2 {[%clk 0:00:18.4]} 83... Rd3 {[%clk 0:00:29]} 84. Re8+
{[%clk 0:00:19]} 84... Kf5 {[%clk 0:00:27]} 85. Kf2 {[%clk 0:00:19.4]} 85...
Rd2+ {[%clk 0:00:27.3]} 86. Ke3 {[%clk 0:00:19.2]} 86... Ra2 {[%clk 0:00:20.7]}
87. Rf8+ {[%clk 0:00:20.5]} 87... Ke5 {[%clk 0:00:21.4]} 88. Re8+ {[%clk
0:00:21.6]} 88... Kf5 {[%clk 0:00:21.6]} 89. Rf8+ {[%clk 0:00:23.1]} 89... Kg5
{[%clk 0:00:21]} 90. Rg8+ {[%clk 0:00:24.3]} 90... Kf5 {[%clk 0:00:21.8]} 91.
Rf8+ {[%clk 0:00:25.5]} 91... Ke5 {[%clk 0:00:21.7]} 92. Re8+ {[%clk 0:00:26.7]}
92... Kf6 {[%clk 0:00:23]} 93. Rf8+ {[%clk 0:00:26.9]} 93... Ke6 {[%clk
0:00:21.9]} 94. Rf4 {[%clk 0:00:21.4]} 94... Ra3+ {[%clk 0:00:21.6]} 95. Kf2
{[%clk 0:00:22.3]} 95... Ra2+ {[%clk 0:00:23.1]} 96. Kf1 {[%clk 0:00:21.7]}
96... Ra1+ {[%clk 0:00:24.2]} 97. Kf2 {[%clk 0:00:20]} 97... Ra2+ {[%clk
0:00:09.8]} 98. Ke1 {[%clk 0:00:21.2]} 98... Ra1+ {[%clk 0:00:07.6]} 99. Kd2
{[%clk 0:00:22.4]} 99... Ra2+ {[%clk 0:00:08.2]} 100. Kd1 {[%clk 0:00:23.2]}
100... Ra1+ {[%clk 0:00:08.6]} 101. Kc2 {[%clk 0:00:24.3]} 101... Ra2+ {[%clk
0:00:03.9]} 102. Kb3 {[%clk 0:00:25.6]} 102... Re2 {[%clk 0:00:05]} 103. Rxg4
{[%clk 0:00:26]} 103... Rd2 {[%clk 0:00:05.8]} 104. Kc3 {[%clk 0:00:26.3]}
104... Rd8 {[%clk 0:00:06.7]} 105. Kc4 {[%clk 0:00:23]} 105... Ra8 {[%clk
0:00:05.9]} 106. Kd3 {[%clk 0:00:22]} 106... Ke5 {[%clk 0:00:06.1]} 107. Rg5+
{[%clk 0:00:22.4]} 107... Kf6 {[%clk 0:00:07.4]} 108. Rg4 {[%clk 0:00:20.3]}
108... Ra3+ {[%clk 0:00:08.7]} 109. Ke2 {[%clk 0:00:21.3]} 109... Ke5 {[%clk
0:00:08.9]} 110. Kf2 {[%clk 0:00:21.2]} 110... Ra2+ {[%clk 0:00:09.8]} 111. Kf3
{[%clk 0:00:22.5]} 111... Ra3+ {[%clk 0:00:10.5]} 112. Kg2 {[%clk 0:00:23.8]}
112... Kf5 {[%clk 0:00:12.1]} 113. Rg8 {[%clk 0:00:23.4]} 113... Kf6 {[%clk
0:00:11.2]} 114. Kh3 {[%clk 0:00:23.8]} 114... Kf7 {[%clk 0:00:12.7]} 115. Rg4
{[%clk 0:00:24.7]} 115... Ra1 {[%clk 0:00:13.1]} 116. Kh4 {[%clk 0:00:24.7]}
116... Kf6 {[%clk 0:00:14.3]} 117. Rf4+ {[%clk 0:00:25.8]} 117... Kg6 {[%clk
0:00:15.2]} 118. Kg4 {[%clk 0:00:26.8]} 118... Ra6 {[%clk 0:00:15.2]} 119. Rb4
{[%clk 0:00:27.8]} 119... Ra8 {[%clk 0:00:15.1]} 120. Rb6+ {[%clk 0:00:28.3]}
120... Kg7 {[%clk 0:00:16.1]} 121. Rd6 {[%clk 0:00:27.6]} 121... Ra4+ {[%clk
0:00:16.1]} 122. Kf5 {[%clk 0:00:27.9]} 122... Ra5+ {[%clk 0:00:17.7]} 123. Kf4
{[%clk 0:00:28.2]} 123... Ra4+ {[%clk 0:00:19.1]} 124. Ke5 {[%clk 0:00:27.5]}
124... Rg4 {[%clk 0:00:18.1]} 125. Rd3 {[%clk 0:00:28.3]} 125... Kg6 {[%clk
0:00:18.1]} 126. Ra3 {[%clk 0:00:29.2]} 126... Kg5 {[%clk 0:00:19]} 127. Rb3
{[%clk 0:00:25.8]} 127... Ra4 {[%clk 0:00:19.5]} 128. Rc3 {[%clk 0:00:25.1]}
128... Ra8 {[%clk 0:00:20.1]} 129. Ke4 {[%clk 0:00:25.8]} 129... Kg4 {[%clk
0:00:21.1]} 130. Ke5 {[%clk 0:00:26.1]} 130... Rd8 {[%clk 0:00:21.1]} 131. Ke6
{[%clk 0:00:27.2]} 131... Rd2 {[%clk 0:00:21.5]} 132. Ke5 {[%clk 0:00:28.4]}
132... Re2+ {[%clk 0:00:22.7]} 133. Kd5 {[%clk 0:00:29.5]} 133... Rd2+ {[%clk
0:00:24.1]} 134. Ke5 {[%clk 0:00:30.7]} 134... Rf2 {[%clk 0:00:25.2]} 135. Ke6
{[%clk 0:00:31.6]} 135... Rf1 {[%clk 0:00:26.5]} 136. Ke5 {[%clk 0:00:32.9]}
136... Rf2 {[%clk 0:00:27.9]} 137. Kd6 {[%clk 0:00:34]} 137... Rf8 {[%clk
0:00:29.1]} 138. Ke5 {[%clk 0:00:35]} 138... Rf2 {[%clk 0:00:30.4]} 139. Ke4
{[%clk 0:00:36.1]} 139... Rf1 {[%clk 0:00:31.7]} 140. Kd4 {[%clk 0:00:37.3]}
140... Rf3 {[%clk 0:00:33]} 141. Rd3 {[%clk 0:00:34.4]} 141... Rf8 {[%clk
0:00:33.3]} 142. Re3 {[%clk 0:00:34.7]} 142... Rd8+ {[%clk 0:00:33.2]} 143. Kc3
{[%clk 0:00:35.9]} 143... Rc8+ {[%clk 0:00:34.4]} 144. Kd3 {[%clk 0:00:37.1]}
144... Rd8+ {[%clk 0:00:35.6]} 145. Ke2 {[%clk 0:00:38.4]} 145... Rf8 {[%clk
0:00:36.4]} 146. Rd3 {[%clk 0:00:38.3]} 146... Re8+ {[%clk 0:00:37.5]} 147. Kf2
{[%clk 0:00:39.5]} 147... Rf8+ {[%clk 0:00:39.1]} 148. Kg2 {[%clk 0:00:40.5]}
148... Ra8 {[%clk 0:00:40.8]} 149. Rd4+ {[%clk 0:00:41.9]} 149... Kf5 {[%clk
0:00:42.2]} 150. Rf4+ {[%clk 0:00:42.5]} 150... Kg5 {[%clk 0:00:43.3]} 151. Rf2
{[%clk 0:00:43.6]} 151... Kg4 {[%clk 0:00:44]} 152. Rf4+ {[%clk 0:00:44.3]}
152... Kg5 {[%clk 0:00:45.6]} 153. Rf2 {[%clk 0:00:46.2]} 153... Ra3 {[%clk
0:00:46.6]} 154. Rf3 {[%clk 0:00:46.4]} 154... Ra2+ {[%clk 0:00:47.6]} 155. Rf2
{[%clk 0:00:47.7]} 155... Ra4 {[%clk 0:00:48.8]} 156. Rf3 {[%clk 0:00:48.2]}
156... Kg4 {[%clk 0:00:49.9]} 157. Rf2 {[%clk 0:00:48]} 157... Ra3 {[%clk
0:00:50.6]} 158. Rf4+ {[%clk 0:00:48.7]} 158... Kg5 {[%clk 0:00:52]} 159. Rf3
{[%clk 0:00:50.6]} 159... Ra2+ {[%clk 0:00:52.7]} 160. Rf2 {[%clk 0:00:51.9]}
160... Ra4 {[%clk 0:00:54.3]} 161. Rf3 {[%clk 0:00:53.1]} 161... Ra1 {[%clk
0:00:52]} 162. Rf2 {[%clk 0:00:54.2]} 162... Ra8 {[%clk 0:00:51.4]} 163. Rf3
{[%clk 0:00:54.8]} 163... Rg8 {[%clk 0:00:52]} 164. Rf2 {[%clk 0:00:55]} 164...
Rg6 {[%clk 0:00:53.1]} 165. Rf3 {[%clk 0:00:55.9]} 165... Rc6 {[%clk 0:00:54.6]}
166. Rf2 {[%clk 0:00:57]} 166... Rc3 {[%clk 0:00:55.7]} 167. Rf3 {[%clk
0:00:58]} 167... Rxf3 {[%clk 0:00:57.3]} 168. Kxf3 {[%clk 0:00:59.1]} 168... Kf5
{[%clk 0:00:59]} 169. g4+ {[%clk 0:01:01]} 169... Kg5 {[%clk 0:01:00.2]} 170.
Kg3 {[%clk 0:01:02.9]} 170... Kg6 {[%clk 0:01:01.7]} 171. Kf4 {[%clk 0:01:04.8]}
171... Kf6 {[%clk 0:01:03.2]} 172. g5+ {[%clk 0:01:06.7]} 172... Kg6 {[%clk
0:01:04.9]} 173. Kg4 {[%clk 0:01:08.6]} 173... Kg7 {[%clk 0:01:06.5]} 174. Kf5
{[%clk 0:01:10.5]} 174... Kf7 {[%clk 0:01:08.1]} 175. g6+ {[%clk 0:01:12.4]}
175... Kg7 {[%clk 0:01:09.8]} 176. Kg5 {[%clk 0:01:14.3]} 176... Kg8 {[%clk
0:01:11.3]} 177. Kf6 {[%clk 0:01:16.2]} 177... Kf8 {[%clk 0:01:12.6]} 178. g7+
{[%clk 0:01:18.1]} 178... Kg8 {[%clk 0:01:14.1]} 179. Ke7 {[%clk 0:01:20]}
179... Kxg7 {[%clk 0:01:14]} 1/2-1/2

[Event "*** Titled Tuesday Blitz"]
[Site "Chess.com"]
[Date "2019.02.05"]
[Round "5"]
[White "PotapovaM"]
[Black "KRASAVCHIK2002"]
[Result "0-1"]
[WhiteElo "2426"]
[BlackElo "2277"]
[TimeControl "180+2"]
[EndTime "14:15:07 PST"]
[Termination "KRASAVCHIK2002 won by resignation"]

1. d4 {[%clk 0:03:01.9]} 1... Nf6 {[%clk 0:02:59.6]} 2. c4 {[%clk 0:03:02.8]}
2... c5 {[%clk 0:03:00.8]} 3. d5 {[%clk 0:02:59.6]} 3... b5 {[%clk 0:03:01.9]}
4. cxb5 {[%clk 0:03:01.5]} 4... a6 {[%clk 0:03:03.2]} 5. bxa6 {[%clk 0:03:02.2]}
5... g6 {[%clk 0:03:04.7]} 6. Nc3 {[%clk 0:02:59.2]} 6... Bg7 {[%clk 0:03:05]}
7. e4 {[%clk 0:03:00.4]} 7... O-O {[%clk 0:03:05.6]} 8. Nf3 {[%clk 0:03:01.3]}
8... Qa5 {[%clk 0:03:05.5]} 9. Bd2 {[%clk 0:03:02.4]} 9... Bxa6 {[%clk
0:03:05.7]} 10. Be2 {[%clk 0:03:03.5]} 10... Bxe2 {[%clk 0:02:49.3]} 11. Qxe2
{[%clk 0:03:05.4]} 11... Qa6 {[%clk 0:02:50.9]} 12. Qxa6 {[%clk 0:02:59.6]}
12... Nxa6 {[%clk 0:02:51.9]} 13. e5 {[%clk 0:03:00.7]} 13... Ng4 {[%clk
0:02:44.3]} 14. Bf4 {[%clk 0:02:59.6]} 14... Nb4 {[%clk 0:02:39.2]} 15. Rd1
{[%clk 0:00:56.8]} 15... Nxa2 {[%clk 0:02:25.4]} 16. Ne4 {[%clk 0:00:57.7]}
16... f6 {[%clk 0:02:18.2]} 17. exf6 {[%clk 0:00:50.7]} 17... Nxf6 {[%clk
0:02:13.4]} 18. Nxc5 {[%clk 0:00:48.7]} 18... Nh5 {[%clk 0:01:38.1]} 19. Bg5
{[%clk 0:00:44.7]} 19... Bxb2 {[%clk 0:01:31.3]} 20. O-O {[%clk 0:00:39.9]}
20... d6 {[%clk 0:01:26.4]} 21. Ne6 {[%clk 0:00:38.9]} 21... Rf7 {[%clk
0:01:26.7]} 22. Rd2 {[%clk 0:00:33.5]} 22... Bh8 {[%clk 0:01:23]} 23. Nc7 {[%clk
0:00:32]} 23... Ra7 {[%clk 0:01:20.3]} 24. Ne6 {[%clk 0:00:26.9]} 24... Nc3
{[%clk 0:01:13.8]} 25. Nfd4 {[%clk 0:00:23.4]} 25... Bxd4 {[%clk 0:01:06.4]} 26.
Nxd4 {[%clk 0:00:16.9]} 26... Nf6 {[%clk 0:00:37.1]} 27. Nc6 {[%clk 0:00:16]}
27... Rc7 {[%clk 0:00:35.9]} 28. Rc2 {[%clk 0:00:14.4]} 28... Ncxd5 {[%clk
0:00:34]} 29. Rfc1 {[%clk 0:00:10.8]} 29... Kg7 {[%clk 0:00:32.5]} 30. f3 {[%clk
0:00:11.9]} 30... h6 {[%clk 0:00:30.8]} 31. Bd2 {[%clk 0:00:11.1]} 31... e5
{[%clk 0:00:31.6]} 32. Ba5 {[%clk 0:00:10.6]} 32... Rc8 {[%clk 0:00:27.7]} 33.
Nd8 {[%clk 0:00:11.1]} 33... Rxc2 {[%clk 0:00:27.3]} 34. Rxc2 {[%clk 0:00:12.1]}
34... Rd7 {[%clk 0:00:26.4]} 35. Rc8 {[%clk 0:00:11.2]} 35... Ne7 {[%clk
0:00:22]} 36. Ne6+ {[%clk 0:00:07.2]} 36... Kf7 {[%clk 0:00:22.5]} 37. Nd8+
{[%clk 0:00:08.2]} 37... Kg7 {[%clk 0:00:20.1]} 38. Ne6+ {[%clk 0:00:09.4]}
38... Kf7 {[%clk 0:00:21.4]} 39. Nd8+ {[%clk 0:00:10.7]} 39... Kg7 {[%clk
0:00:18.6]} 40. Ne6+ {[%clk 0:00:11.8]} 40... Kf7 {[%clk 0:00:20.1]} 41. Nd8+
{[%clk 0:00:12.8]} 41... Ke8 {[%clk 0:00:12.4]} 42. Ra8 {[%clk 0:00:08.6]} 42...
Nfd5 {[%clk 0:00:12.9]} 43. Ne6+ {[%clk 0:00:08.1]} 43... Kf7 {[%clk 0:00:14]}
44. Nd8+ {[%clk 0:00:09.2]} 44... Kf6 {[%clk 0:00:15.4]} 45. h3 {[%clk 0:00:09]}
45... Nf4 {[%clk 0:00:13.9]} 46. Kh2 {[%clk 0:00:07.4]} 46... Ne6 {[%clk
0:00:15]} 47. Nxe6 {[%clk 0:00:06.3]} 47... Kxe6 {[%clk 0:00:16.9]} 48. Bb4
{[%clk 0:00:07.2]} 48... Rb7 {[%clk 0:00:15]} 49. Bd2 {[%clk 0:00:07.1]} 49...
h5 {[%clk 0:00:15.3]} 50. Ra6 {[%clk 0:00:08]} 50... Rd7 {[%clk 0:00:15.1]} 51.
Bb4 {[%clk 0:00:08.5]} 51... Nd5 {[%clk 0:00:13]} 52. Ba3 {[%clk 0:00:08.5]}
52... Nc7 {[%clk 0:00:13.8]} 53. Rb6 {[%clk 0:00:08.6]} 53... Nd5 {[%clk
0:00:14.2]} 54. Ra6 {[%clk 0:00:09.8]} 54... Nf4 {[%clk 0:00:15.3]} 55. Kg3
{[%clk 0:00:09.8]} 55... g5 {[%clk 0:00:14.4]} 56. Kf2 {[%clk 0:00:10.8]} 56...
h4 {[%clk 0:00:15.1]} 57. g3 {[%clk 0:00:07.5]} 57... hxg3+ {[%clk 0:00:15.9]}
58. Kxg3 {[%clk 0:00:09.4]} 58... Nd5 {[%clk 0:00:08]} 59. Kg4 {[%clk
0:00:09.4]} 59... Nf6+ {[%clk 0:00:07.8]} 60. Kxg5 {[%clk 0:00:09.3]} 60... Rg7+
{[%clk 0:00:07.6]} 61. Kh6 {[%clk 0:00:09.9]} 61... Rd7 {[%clk 0:00:08.2]} 62.
Kg6 {[%clk 0:00:10]} 62... Ng8 {[%clk 0:00:08.6]} 63. h4 {[%clk 0:00:10.6]}
63... Ne7+ {[%clk 0:00:10.1]} 64. Kg5 {[%clk 0:00:10.5]} 64... Nf5 {[%clk
0:00:10.5]} 65. Kg4 {[%clk 0:00:04.6]} 65... Rg7+ {[%clk 0:00:11]} 66. Kh3
{[%clk 0:00:05.9]} 66... Rg3+ {[%clk 0:00:12.1]} 67. Kh2 {[%clk 0:00:06.9]}
67... Rxf3 {[%clk 0:00:13.6]} 68. h5 {[%clk 0:00:06.6]} 68... Rf4 {[%clk
0:00:14.9]} 69. Kg2 {[%clk 0:00:05.9]} 69... Rh4 {[%clk 0:00:14.2]} 70. Kf3
{[%clk 0:00:07.1]} 70... Rxh5 {[%clk 0:00:15]} 71. Ke4 {[%clk 0:00:08.1]} 71...
Rh4+ {[%clk 0:00:15.7]} 72. Kf3 {[%clk 0:00:08.9]} 72... Rh3+ {[%clk 0:00:15.7]}
73. Kg2 {[%clk 0:00:09.6]} 73... Rd3 {[%clk 0:00:16.3]} 74. Kf2 {[%clk
0:00:10.4]} 74... e4 {[%clk 0:00:17.4]} 75. Ke2 {[%clk 0:00:11.5]} 75... Nd4+
{[%clk 0:00:16.6]} 76. Kf2 {[%clk 0:00:12.7]} 76... Nb5 {[%clk 0:00:17.3]} 77.
Bb4 {[%clk 0:00:12.7]} 77... Rd4 {[%clk 0:00:16.6]} 78. Be1 {[%clk 0:00:08.8]}
78... Rd3 {[%clk 0:00:14.6]} 79. Bb4 {[%clk 0:00:09.3]} 79... Kd5 {[%clk
0:00:15.9]} 80. Ke2 {[%clk 0:00:08.3]} 80... Kc4 {[%clk 0:00:16.5]} 81. Be1
{[%clk 0:00:07.6]} 81... d5 {[%clk 0:00:17.8]} 82. Rc6+ {[%clk 0:00:07.9]} 82...
Kd4 {[%clk 0:00:16]} 83. Bf2+ {[%clk 0:00:07.3]} 83... Ke5 {[%clk 0:00:17.3]}
84. Bg3+ {[%clk 0:00:08.6]} 84... Kf5 {[%clk 0:00:18.2]} 85. Bf2 {[%clk
0:00:09.7]} 85... Nc3+ {[%clk 0:00:18.7]} 86. Kf1 {[%clk 0:00:09.1]} 86... e3
{[%clk 0:00:19.1]} 87. Be1 {[%clk 0:00:07.6]} 87... Ne4 {[%clk 0:00:17.1]} 88.
Ke2 {[%clk 0:00:07.5]} 88... Ra3 {[%clk 0:00:16.1]} 89. Bb4 {[%clk 0:00:08.5]}
89... Rb3 {[%clk 0:00:15.9]} 90. Be1 {[%clk 0:00:08.6]} 90... d4 {[%clk
0:00:12.5]} 91. Rc8 {[%clk 0:00:09.5]} 91... Rb2+ {[%clk 0:00:08.6]} 92. Kd3
{[%clk 0:00:09]} 92... Nf2+ {[%clk 0:00:08.4]} 93. Kxd4 {[%clk 0:00:09]} 93...
Ng4 {[%clk 0:00:09.3]} 94. Rf8+ {[%clk 0:00:08.5]} 94... Kg5 {[%clk 0:00:10.5]}
95. Rg8+ {[%clk 0:00:09.2]} 95... Kf4 {[%clk 0:00:10.6]} 96. Rf8+ {[%clk
0:00:10.3]} 96... Kg5 {[%clk 0:00:12.1]} 97. Rg8+ {[%clk 0:00:11.5]} 97... Kf5
{[%clk 0:00:13.8]} 98. Rxg4 {[%clk 0:00:10.7]} 98... Kxg4 {[%clk 0:00:12]} 99.
Kxe3 {[%clk 0:00:12]} 99... Rb3+ {[%clk 0:00:13.6]} 100. Kd4 {[%clk 0:00:11.6]}
100... Kf3 {[%clk 0:00:13.7]} 101. Ba5 {[%clk 0:00:12.2]} 101... Rb5 {[%clk
0:00:14]} 102. Bc7 {[%clk 0:00:13.1]} 102... Rb7 {[%clk 0:00:13.5]} 103. Be5
{[%clk 0:00:14]} 103... Rd7+ {[%clk 0:00:14.5]} 104. Kc5 {[%clk 0:00:14.1]}
104... Ke4 {[%clk 0:00:15.7]} 105. Bd6 {[%clk 0:00:14.3]} 105... Rf7 {[%clk
0:00:11.9]} 106. Bg3 {[%clk 0:00:13.9]} 106... Rf5+ {[%clk 0:00:11.6]} 107. Kc4
{[%clk 0:00:13.5]} 107... Rf1 {[%clk 0:00:10.8]} 108. Kc5 {[%clk 0:00:13]}
108... Rc1+ {[%clk 0:00:10.8]} 109. Kd6 {[%clk 0:00:13.9]} 109... Rc4 {[%clk
0:00:09]} 110. Bh2 {[%clk 0:00:13]} 110... Rc2 {[%clk 0:00:08.6]} 111. Bg3
{[%clk 0:00:13]} 111... Rg2 {[%clk 0:00:07.2]} 112. Bh4 {[%clk 0:00:14]} 112...
Rg6+ {[%clk 0:00:06.6]} 113. Kc5 {[%clk 0:00:15]} 113... Ke5 {[%clk 0:00:08]}
114. Bf2 {[%clk 0:00:13]} 114... Rg2 {[%clk 0:00:07.3]} 115. Bd4+ {[%clk
0:00:14.1]} 115... Ke6 {[%clk 0:00:08.6]} 116. Kc4 {[%clk 0:00:14]} 116... Rc2+
{[%clk 0:00:09.2]} 117. Kd3 {[%clk 0:00:15]} 117... Rc8 {[%clk 0:00:10.7]} 118.
Ke4 {[%clk 0:00:15.9]} 118... Rg8 {[%clk 0:00:11.5]} 119. Kf4 {[%clk 0:00:16.1]}
119... Kd5 {[%clk 0:00:11.9]} 120. Bc3 {[%clk 0:00:16.9]} 120... Rf8+ {[%clk
0:00:12.5]} 121. Ke3 {[%clk 0:00:17.5]} 121... Re8+ {[%clk 0:00:13]} 122. Kf4
{[%clk 0:00:17.6]} 122... Re4+ {[%clk 0:00:11.8]} 123. Kf3 {[%clk 0:00:18.8]}
123... Ra4 {[%clk 0:00:09.8]} 124. Bg7 {[%clk 0:00:15.9]} 124... Ra7 {[%clk
0:00:06]} 125. Bh8 {[%clk 0:00:14.3]} 125... Ra3+ {[%clk 0:00:05.8]} 126. Kf4
{[%clk 0:00:14.9]} 126... Ra2 {[%clk 0:00:06.5]} 127. Kf3 {[%clk 0:00:15.1]}
127... Kc4 {[%clk 0:00:06.6]} 128. Ke4 {[%clk 0:00:15]} 128... Re2+ {[%clk
0:00:06.9]} 129. Kf4 {[%clk 0:00:14.2]} 129... Re8 {[%clk 0:00:08.8]} 130. Be5
{[%clk 0:00:12.1]} 130... Kd5 {[%clk 0:00:06.2]} 131. Bc3 {[%clk 0:00:11.4]}
131... Re4+ {[%clk 0:00:05.6]} 132. Kf3 {[%clk 0:00:07.8]} 132... Rh4 {[%clk
0:00:04.2]} 133. Kg3 {[%clk 0:00:08.2]} 133... Rc4 {[%clk 0:00:04.8]} 134. Bf6
{[%clk 0:00:09.3]} 134... Ke4 {[%clk 0:00:05.5]} 135. Kg4 {[%clk 0:00:09]}
135... Rc8 {[%clk 0:00:06]} 136. Kg5 {[%clk 0:00:03.7]} 136... Rg8+ {[%clk
0:00:06.5]} 137. Kh6 {[%clk 0:00:03.6]} 137... Kf5 {[%clk 0:00:06.2]} 138. Bg7
{[%clk 0:00:04.5]} 138... Re8 {[%clk 0:00:04.3]} 139. Kh7 {[%clk 0:00:05.3]}
139... Re1 {[%clk 0:00:03.2]} 140. Kg8 {[%clk 0:00:06.1]} 140... Ke6 {[%clk
0:00:03.4]} 141. Kh7 {[%clk 0:00:05.1]} 141... Kf7 {[%clk 0:00:03.8]} 142. Bh6
{[%clk 0:00:02.7]} 142... Rh1 {[%clk 0:00:03.9]} 0-1

[Event "*** Titled Tuesday Blitz"]
[Site "Chess.com"]
[Date "2019.02.05"]
[Round "6"]
[White "GHANDEEVAM2003"]
[Black "Andrew-FB00"]
[Result "1-0"]
[WhiteElo "2837"]
[BlackElo "1882"]
[TimeControl "180+2"]
[EndTime "14:17:17 PST"]
[Termination "GHANDEEVAM2003 won by resignation"]

1. e4 {[%clk 0:03:01.5]} 1... e5 {[%clk 0:03:00.5]} 2. Nf3 {[%clk 0:03:01.1]}
2... Nc6 {[%clk 0:03:01.1]} 3. Bb5 {[%clk 0:03:02.5]} 3... Nf6 {[%clk 0:02:58]}
4. d3 {[%clk 0:02:59.7]} 4... a6 {[%clk 0:02:58.4]} 5. Bxc6 {[%clk 0:02:56.7]}
5... dxc6 {[%clk 0:02:58.9]} 6. Nxe5 {[%clk 0:02:57.6]} 6... Bd6 {[%clk
0:02:53.8]} 7. Nc4 {[%clk 0:02:57]} 7... O-O {[%clk 0:02:53.2]} 8. O-O {[%clk
0:02:57.3]} 8... Be6 {[%clk 0:02:53.6]} 9. Nbd2 {[%clk 0:02:54.4]} 9... Bxc4
{[%clk 0:02:52.3]} 10. Nxc4 {[%clk 0:02:56.3]} 10... Bc5 {[%clk 0:02:50.1]} 11.
Bg5 {[%clk 0:02:54.9]} 11... h6 {[%clk 0:02:48.6]} 12. Bh4 {[%clk 0:02:55.9]}
12... g5 {[%clk 0:02:49.4]} 13. Bg3 {[%clk 0:02:57]} 13... b5 {[%clk 0:02:49.7]}
14. Ne3 {[%clk 0:02:57.7]} 14... Bxe3 {[%clk 0:02:36.4]} 15. fxe3 {[%clk
0:02:59.6]} 15... Kg7 {[%clk 0:02:36.2]} 16. Be5 {[%clk 0:02:58.9]} 1-0